fUSD/lending_fUSD_20250905
["ID","MTS","AMOUNT","RATE_DAILY","PERIOD"]
[383773303,1757110254369,-404.11416456,0.00036986,10]
[383773304,1757110254379,-404.05,0.00036986,10]
[383773305,1757110254389,-339.8600197,0.00036986,10]
[383773306,1757110254399,-400.0,0.00036986,10]
[383773307,1757110254409,-400.0,0.00036986,10]
[383773308,1757110254419,-478.22,0.00036986,10]
[383773309,1757110254429,-400.0,0.00036986,10]
[383773310,1757110254439,-400.0,0.00036986,10]
[383773311,1757110254448,-400.0,0.00036986,10]
[383773312,1757110254458,-400.0,0.00036986,10]
[383773313,1757110254468,-555.03,0.00036986,10]
[383773314,1757110254478,-522.98,0.00036986,10]
[383773315,1757110254488,-400.0,0.00036986,10]
[383773316,1757110254498,-400.0,0.00036986,10]
[383773317,1757110254508,-400.0,0.00036986,10]
[383773318,1757110254517,-400.0,0.00036986,10]
[383773319,1757110254527,-400.0,0.00036986,10]
[383773320,1757110254537,-400.0,0.00036986,10]
[383773321,1757110254547,-400.0,0.00036986,10]
[383773322,1757110254559,-400.0,0.00036986,10]
[383773323,1757110254568,-400.0,0.00036986,10]
[383773324,1757110254579,-400.0,0.00036986,10]
[383773325,1757110254589,-400.0,0.00036986,10]
[383773326,1757110254598,-400.0,0.00036986,10]
[383773327,1757110254609,-400.0,0.00036986,10]
[383773328,1757110254619,-617.32,0.00036986,10]
[383773329,1757110254629,-400.0,0.00036986,10]
[383773330,1757110254639,-400.0,0.00036986,10]
[383773331,1757110254648,-522.66,0.00036986,10]
[383773332,1757110254658,-400.0,0.00036986,10]
[383773333,1757110254668,-400.0,0.00036986,10]
[383773334,1757110254678,-400.0,0.00036986,10]
[383773335,1757110254688,-896.9,0.00036986,10]
[383773336,1757110254699,-520.03,0.00036986,10]
[383773337,1757110254709,-400.0,0.00036986,10]
[383773338,1757110254720,-513.86,0.00036986,10]
[383773339,1757110254731,-500.0,0.00036986,2]
[383773340,1757110254741,-558.4,0.00036986,10]
[383773341,1757110254751,-649.24,0.00036986,10]
[383773342,1757110254760,-400.0,0.00036986,10]
[383773343,1757110254771,-614.37,0.00036986,10]
[383773344,1757110254784,-1000.0,0.00036986,10]
[383773345,1757110254794,-400.0,0.00036986,10]
[383773346,1757110254804,-538.02,0.00036986,10]
[383773347,1757110254815,-437.77,0.00036986,10]
[383773348,1757110254825,-556.89,0.00036986,10]
[383773349,1757110254835,-400.0,0.00036986,10]
[383773350,1757110254845,-400.0,0.00036986,10]
[383773351,1757110254855,-474.27,0.00036986,10]
[383773352,1757110254865,-400.0,0.00036986,10]
[383773353,1757110254876,-439.12,0.00036986,10]
[383773354,1757110254885,-415.35,0.00036986,10]
[383773355,1757110254895,-226.60958389,0.00036986,10]
[383773356,1757110254905,-400.0,0.00036986,10]
[383773357,1757110254916,-815.21,0.00036986,10]
[383773358,1757110254927,-789.73,0.00036986,10]
[383773359,1757110254937,-520.84,0.00036986,10]
[383773360,1757110254947,-430.54,0.00036986,10]
[383773361,1757110254958,-400.0,0.00036986,10]
[383773362,1757110254968,-256.48139178,0.00036986,10]
[383773363,1757110254978,-400.0,0.00036986,10]
[383773364,1757110254988,-411.32644181,0.00036986,10]
[383773365,1757110254999,-406.06,0.00036986,10]
[383773366,1757110255009,-400.0,0.00036986,10]
[383773367,1757110255020,-400.0,0.00036986,10]
[383773368,1757110255030,-400.0,0.00036986,10]
[383773369,1757110255040,-734.64,0.00036986,10]
[383773370,1757110255050,-400.0,0.00036986,10]
[383773371,1757110255061,-400.0,0.00036986,10]
[383773372,1757110255071,-400.0,0.00036986,10]
[383773373,1757110255082,-400.0,0.00036986,10]
[383773374,1757110255092,-400.0,0.00036986,10]
[383773375,1757110255103,-400.0,0.00036986,10]
[383773376,1757110255113,-400.0,0.00036986,10]
[383773377,1757110255123,-400.0,0.00036986,10]
[383773378,1757110255134,-400.0,0.00036986,10]
[383773379,1757110255144,-290.64,0.00036986,10]
[383773380,1757110255155,-545.69,0.00036986,10]
[383773381,1757110255165,-400.0,0.00036986,10]
[383773382,1757110255175,-3990.88,0.00036986,10]
[383773383,1757110255185,-425.1,0.00036986,10]
[383773384,1757110255195,-400.0,0.00036986,10]
[383773385,1757110255205,-715.64,0.00036986,10]
[383773386,1757110255217,-1117.99,0.00036986,10]
[383773387,1757110255227,-400.0,0.00036986,10]
[383773388,1757110255237,-436.28,0.00036986,10]
[383773389,1757110255248,-400.0,0.00036986,10]
[383773390,1757110255258,-466.46,0.00036986,10]
[383773391,1757110255268,-420.62,0.00036986,10]
[383773392,1757110255277,-400.0,0.00036986,10]
[383773393,1757110255287,-444.51,0.00036986,10]
[383773394,1757110255298,-12962.46870213,0.00037,4]
[383773395,1757110255310,-9999.99,0.00037067,2]
[383773396,1757110255324,-40082.87,0.00037067,10]
[383773397,1757110255334,-150.99,0.00037067,2]
[383773398,1757110255344,-2289.69,0.00037067,2]
[383773399,1757110255354,-500.0,0.00037067,7]
[383773400,1757110255368,-961.93,0.000371,7]
[383773401,1757110255378,-800.0,0.00037128,7]
[383773402,1757110255388,-1708.0,0.00037149,20]
[383773403,1757110255400,-500.0,0.0003715,7]
[383773404,1757110255415,-500.0,0.00037154,7]
[383773405,1757110255426,-286.11434836,0.000372,120]
[383773406,1757110255436,-6472.34453368,0.0003723,3]
[383773407,1757110255447,-6472.34453368,0.0003724,3]
[383773408,1757110255457,-12944.6890674,0.0003725,3]
[383773409,1757110255467,-500.0,0.00037259,2]
[383773410,1757110255477,-500.0,0.00037259,10]
[383773411,1757110255487,-597.218875,0.00037259,10]
[383773412,1757110255497,-261.12783163,0.0003726,10]
[383773413,1757110255506,-400.0,0.0003726,10]
[383773414,1757110255516,-435.81128006,0.0003726,10]
[383773415,1757110255526,-400.0,0.0003726,10]
[383773416,1757110255535,-400.0,0.0003726,10]
[383773417,1757110255545,-400.0,0.0003726,10]
[383773418,1757110255555,-364.78709428,0.0003726,10]
[383773419,1757110255564,-400.0,0.0003726,10]
[383773420,1757110255575,-400.0,0.0003726,10]
[383773421,1757110255585,-409.54,0.0003726,10]
[383773422,1757110255595,-400.0,0.0003726,10]
[383773423,1757110255604,-400.0,0.0003726,10]
[383773424,1757110255614,-400.0,0.0003726,10]
[383773425,1757110255624,-647.03,0.0003726,10]
[383773426,1757110255635,-656.12,0.0003726,10]
[383773427,1757110255644,-400.0,0.0003726,10]
[383773428,1757110255654,-400.0,0.0003726,10]
[383773429,1757110255669,-400.0,0.0003726,10]
[383773430,1757110255680,-400.0,0.0003726,10]
[383773431,1757110255690,-400.0,0.0003726,10]
[383773432,1757110255701,-610.42,0.0003726,10]
[383773433,1757110255712,-293.52735513,0.0003726,10]
[383773434,1757110255722,-400.0,0.0003726,10]
[383773435,1757110255732,-400.0,0.0003726,10]
[383773436,1757110255747,-400.0,0.0003726,10]
[383773437,1757110255757,-400.0,0.0003726,10]
[383773438,1757110255767,-400.0,0.0003726,10]
[383773439,1757110255777,-400.0,0.0003726,10]
[383773440,1757110255787,-400.0,0.0003726,10]
[383773441,1757110255796,-400.0,0.0003726,10]
[383773442,1757110255806,-400.0,0.0003726,10]
[383773443,1757110255815,-585.76,0.0003726,10]
[383773444,1757110255825,-400.0,0.0003726,10]
[383773445,1757110255836,-400.0,0.0003726,10]
[383773446,1757110255847,-3134.44,0.0003726,5]
[383773447,1757110255857,-400.0,0.0003726,10]
[383773448,1757110255867,-400.0,0.0003726,10]
[383773449,1757110255877,-400.0,0.0003726,10]
[383773450,1757110255888,-400.0,0.0003726,10]
[383773451,1757110255898,-400.0,0.0003726,10]
[383773452,1757110255908,-400.0,0.0003726,10]
[383773453,1757110255918,-400.0,0.0003726,10]
[383773454,1757110255928,-400.0,0.0003726,10]
[383773455,1757110255939,-400.0,0.0003726,10]
[383773456,1757110255949,-400.0,0.0003726,10]
[383773457,1757110255959,-404.05,0.0003726,10]
[383773458,1757110255969,-400.0,0.0003726,10]
[383773459,1757110255979,-400.0,0.0003726,10]
[383773460,1757110255990,-478.22,0.0003726,10]
[383773461,1757110256002,-400.0,0.0003726,10]
[383773462,1757110256013,-400.0,0.0003726,10]
[383773463,1757110256024,-400.0,0.0003726,10]
[383773464,1757110256035,-400.0,0.0003726,10]
[383773465,1757110256047,-555.03,0.0003726,10]
[383773466,1757110256057,-522.98,0.0003726,10]
[383773467,1757110256067,-400.0,0.0003726,10]
[383773468,1757110256077,-400.0,0.0003726,10]
[383773469,1757110256087,-400.0,0.0003726,10]
[383773470,1757110256096,-400.0,0.0003726,10]
[383773471,1757110256106,-400.0,0.0003726,10]
[383773472,1757110256116,-400.0,0.0003726,10]
[383773473,1757110256128,-400.0,0.0003726,10]
[383773474,1757110256138,-400.0,0.0003726,10]
[383773475,1757110256148,-400.0,0.0003726,10]
[383773476,1757110256157,-400.0,0.0003726,10]
[383773477,1757110256167,-325.49229522,0.0003726,10]
[383773478,1757110256177,-400.0,0.0003726,10]
[383773479,1757110256187,-617.32,0.0003726,10]
[383773480,1757110256197,-400.0,0.0003726,10]
[383773481,1757110256208,-400.0,0.0003726,10]
[383773482,1757110256219,-400.0,0.0003726,10]
[383773483,1757110256229,-400.0,0.0003726,10]
[383773484,1757110256239,-896.9,0.0003726,10]
[383773485,1757110256249,-520.03,0.0003726,10]
[383773486,1757110256259,-400.0,0.0003726,10]
[383773487,1757110256271,-558.4,0.0003726,10]
[383773488,1757110256282,-649.24,0.0003726,10]
[383773489,1757110256292,-400.0,0.0003726,10]
[383773490,1757110256303,-614.37,0.0003726,10]
[383773491,1757110256319,-1000.0,0.0003726,10]
[383773492,1757110256331,-400.0,0.0003726,10]
[383773493,1757110256342,-538.02,0.0003726,10]
[383773494,1757110256353,-437.77,0.0003726,10]
[383773495,1757110256363,-556.89,0.0003726,10]
[383773496,1757110256375,-400.0,0.0003726,10]
[383773497,1757110256386,-311.92754721,0.0003726,10]
[383773498,1757110256398,-474.27,0.0003726,10]
[383773499,1757110256408,-400.0,0.0003726,10]
[383773500,1757110256420,-439.12,0.0003726,10]
[383773501,1757110256431,-415.35,0.0003726,10]
[383773502,1757110256442,-400.0,0.0003726,10]
[383773503,1757110256454,-815.21,0.0003726,10]
[383773504,1757110256465,-789.73,0.0003726,10]
[383773505,1757110256476,-520.84,0.0003726,10]
[383773506,1757110256488,-529.08,0.0003726,10]
[383773507,1757110256500,-400.0,0.0003726,10]
[383773508,1757110256510,-406.06,0.0003726,10]
[383773509,1757110256520,-400.0,0.0003726,10]
[383773510,1757110256529,-400.0,0.0003726,10]
[383773511,1757110256539,-400.0,0.0003726,10]
[383773512,1757110256549,-734.64,0.0003726,10]
[383773513,1757110256559,-400.0,0.0003726,10]
[383773514,1757110256569,-400.0,0.0003726,10]
[383773515,1757110256578,-400.0,0.0003726,10]
[383773516,1757110256589,-400.0,0.0003726,10]
[383773517,1757110256598,-400.0,0.0003726,10]
[383773518,1757110256608,-400.0,0.0003726,10]
[383773519,1757110256618,-400.0,0.0003726,10]
[383773520,1757110256628,-400.0,0.0003726,10]
[383773521,1757110256637,-400.0,0.0003726,10]
[383773522,1757110256647,-545.69,0.0003726,10]
[383773523,1757110256657,-400.0,0.0003726,10]
[383773524,1757110256667,-3990.88,0.0003726,10]
[383773525,1757110256677,-425.1,0.0003726,10]
[383773526,1757110256687,-400.0,0.0003726,10]
[383773527,1757110256697,-715.64,0.0003726,10]
[383773528,1757110256711,-1117.99,0.0003726,10]
[383773529,1757110256942,-400.0,0.0003726,10]
[383773530,1757110256953,-436.28,0.0003726,10]
[383773531,1757110256963,-400.0,0.0003726,10]
[383773532,1757110256973,-466.46,0.0003726,10]
[383773533,1757110256982,-420.62,0.0003726,10]
[383773534,1757110256992,-400.0,0.0003726,10]
[383773535,1757110257004,-444.51,0.0003726,10]
[383773536,1757110257014,-168.0,0.00037306,2]
[383773537,1757110257024,-344.0,0.00037318,2]
[383773538,1757110257034,-800.0,0.00037336,7]
[383773539,1757110257044,-6164.0,0.00037346,2]
[383773540,1757110257054,-4163.0,0.00037346,2]
[383773541,1757110257063,-725.0,0.00037346,2]
[383773542,1757110257072,-21153.0,0.00037346,2]
[383773543,1757110257082,-343.0,0.00037365,2]
[383773544,1757110257091,-500.0,0.00037379,7]
[383773545,1757110257101,-280.0,0.000374,30]
[383773546,1757110257111,-500.0,0.00037402,7]
[383773547,1757110257120,-343.0,0.00037422,7]
[383773548,1757110257130,-165.20390913,0.00037424,10]
[383773549,1757110257140,-500.0,0.00037431,7]
[383773550,1757110257149,-500.0,0.00037433,7]
[383773551,1757110257159,-500.0,0.00037509,7]
[383773552,1757110257168,-1708.0,0.00037525,20]
[383773553,1757110257177,-658.68394655,0.00037525,20]
[383773554,1757110257187,-400.0,0.00037534,10]
[383773555,1757110257196,-400.0,0.00037534,10]
[383773556,1757110257205,-400.0,0.00037534,10]
[383773557,1757110257215,-400.0,0.00037534,10]
[383773558,1757110257224,-400.0,0.00037534,10]
[383773559,1757110257234,-280.61648066,0.00037534,10]
[383773560,1757110257243,-409.54,0.00037534,10]
[383773561,1757110257253,-400.0,0.00037534,10]
[383773562,1757110257262,-400.0,0.00037534,10]
[383773563,1757110257271,-400.0,0.00037534,10]
[383773564,1757110257281,-647.03,0.00037534,10]
[383773565,1757110257290,-656.12,0.00037534,10]
[383773566,1757110257299,-400.0,0.00037534,10]
[383773567,1757110257310,-400.0,0.00037534,10]
[383773568,1757110257322,-400.0,0.00037534,10]
[383773569,1757110257332,-400.0,0.00037534,10]
[383773570,1757110257341,-400.0,0.00037534,10]
[383773571,1757110257351,-610.42,0.00037534,10]
[383773572,1757110257360,-400.0,0.00037534,10]
[383773573,1757110257369,-400.0,0.00037534,10]
[383773574,1757110257379,-400.0,0.00037534,10]
[383773575,1757110257389,-400.0,0.00037534,10]
[383773576,1757110257399,-400.0,0.00037534,10]
[383773577,1757110257408,-400.0,0.00037534,10]
[383773578,1757110257417,-400.0,0.00037534,10]
[383773579,1757110257427,-400.0,0.00037534,10]
[383773580,1757110257436,-400.0,0.00037534,10]
[383773581,1757110257446,-585.76,0.00037534,10]
[383773582,1757110257455,-400.0,0.00037534,10]
[383773583,1757110257464,-400.0,0.00037534,10]
[383773584,1757110257473,-400.0,0.00037534,10]
[383773585,1757110257483,-3134.44,0.00037534,5]
[383773586,1757110257492,-379.47638098,0.00037534,10]
[383773587,1757110257502,-400.0,0.00037534,10]
[383773588,1757110257512,-400.0,0.00037534,10]
[383773589,1757110257521,-400.0,0.00037534,10]
[383773590,1757110257530,-488.1160446,0.00037534,10]
[383773591,1757110257539,-400.0,0.00037534,10]
[383773592,1757110257548,-400.0,0.00037534,10]
[383773593,1757110257558,-400.0,0.00037534,10]
[383773594,1757110257568,-400.0,0.00037534,10]
[383773595,1757110257577,-404.05,0.00037534,10]
[383773596,1757110257587,-400.0,0.00037534,10]
[383773597,1757110257596,-400.0,0.00037534,10]
[383773598,1757110257606,-478.22,0.00037534,10]
[383773599,1757110257615,-400.0,0.00037534,10]
[383773600,1757110257625,-400.0,0.00037534,10]
[383773601,1757110257635,-400.0,0.00037534,10]
[383773602,1757110257644,-400.0,0.00037534,10]
[383773603,1757110257654,-555.03,0.00037534,10]
[383773604,1757110257664,-522.98,0.00037534,10]
[383773605,1757110257673,-400.0,0.00037534,10]
[383773606,1757110257683,-400.0,0.00037534,10]
[383773607,1757110257692,-400.0,0.00037534,10]
[383773608,1757110257702,-403.58025683,0.00037534,10]
[383773609,1757110257711,-400.0,0.00037534,10]
[383773610,1757110257720,-400.0,0.00037534,10]
[383773611,1757110257730,-400.0,0.00037534,10]
[383773612,1757110257741,-400.0,0.00037534,10]
[383773613,1757110257751,-400.0,0.00037534,10]
[383773614,1757110257763,-400.0,0.00037534,10]
[383773615,1757110257773,-400.0,0.00037534,10]
[383773616,1757110257783,-617.32,0.00037534,10]
[383773617,1757110257793,-400.0,0.00037534,10]
[383773618,1757110257804,-400.0,0.00037534,10]
[383773619,1757110257814,-400.0,0.00037534,10]
[383773620,1757110257824,-400.0,0.00037534,10]
[383773621,1757110257834,-896.9,0.00037534,10]
[383773622,1757110257846,-520.03,0.00037534,10]
[383773623,1757110257856,-400.0,0.00037534,10]
[383773624,1757110257866,-558.4,0.00037534,10]
[383773625,1757110257877,-649.24,0.00037534,10]
[383773626,1757110257887,-400.0,0.00037534,10]
[383773627,1757110257897,-614.37,0.00037534,10]
[383773628,1757110257907,-1000.0,0.00037534,10]
[383773629,1757110257916,-400.0,0.00037534,10]
[383773630,1757110257926,-538.02,0.00037534,10]
[383773631,1757110257935,-437.77,0.00037534,10]
[383773632,1757110257945,-556.89,0.00037534,10]
[383773633,1757110257955,-183.68,0.00037534,10]
[383773634,1757110257965,-474.27,0.00037534,10]
[383773635,1757110257975,-400.0,0.00037534,10]
[383773636,1757110257984,-439.12,0.00037534,10]
[383773637,1757110257994,-415.35,0.00037534,10]
[383773638,1757110258005,-400.0,0.00037534,10]
[383773639,1757110258015,-815.21,0.00037534,10]
[383773640,1757110258025,-789.73,0.00037534,10]
[383773641,1757110258035,-520.84,0.00037534,10]
[383773642,1757110258045,-400.0,0.00037534,10]
[383773643,1757110258054,-406.06,0.00037534,10]
[383773644,1757110258064,-400.0,0.00037534,10]
[383773645,1757110258074,-400.0,0.00037534,10]
[383773646,1757110258083,-539.6,0.00037534,10]
[383773647,1757110258094,-734.64,0.00037534,10]
[383773648,1757110258105,-400.0,0.00037534,10]
[383773649,1757110258116,-400.0,0.00037534,10]
[383773650,1757110258127,-400.0,0.00037534,10]
[383773651,1757110258136,-400.0,0.00037534,10]
[383773652,1757110258147,-400.0,0.00037534,10]
[383773653,1757110258156,-400.0,0.00037534,10]
[383773654,1757110258166,-400.0,0.00037534,10]
[383773655,1757110258176,-400.0,0.00037534,10]
[383773656,1757110258185,-415.54744682,0.00037534,10]
[383773657,1757110258194,-545.69,0.00037534,10]
[383773658,1757110258204,-400.0,0.00037534,10]
[383773659,1757110258214,-3990.88,0.00037534,10]
[383773660,1757110258225,-425.1,0.00037534,10]
[383773661,1757110258236,-400.0,0.00037534,10]
[383773662,1757110258248,-715.64,0.00037534,10]
[383773663,1757110258259,-1117.99,0.00037534,10]
[383773664,1757110258269,-400.0,0.00037534,10]
[383773665,1757110258279,-436.28,0.00037534,10]
[383773666,1757110258289,-400.0,0.00037534,10]
[383773667,1757110258299,-466.46,0.00037534,10]
[383773668,1757110258311,-420.62,0.00037534,10]
[383773669,1757110258325,-400.0,0.00037534,10]
[383773670,1757110258337,-444.51,0.00037534,10]
[383773671,1757110258347,-500.0,0.00037548,7]
[383773672,1757110258358,-500.0,0.00037568,7]
[383773673,1757110258370,-500.0,0.00037575,7]
[383773674,1757110258379,-500.0,0.00037584,7]
[383773675,1757110258388,-800.0,0.00037623,7]
[383773676,1757110258398,-344.0,0.00037719,2]
[383773677,1757110258409,-500.0,0.00037728,7]
[383773678,1757110258418,-500.0,0.00037766,7]
[383773679,1757110258427,-154.0,0.000378,20]
[383773680,1757110258437,-500.0,0.000378,7]
[383773681,1757110258449,-300.0,0.00037807,86]
[383773682,1757110258460,-400.0,0.00037808,10]
[383773683,1757110258471,-400.0,0.00037808,10]
[383773684,1757110258481,-400.0,0.00037808,10]
[383773685,1757110258490,-335.71773322,0.00037808,10]
[383773686,1757110258500,-409.54,0.00037808,10]
[383773687,1757110258509,-400.0,0.00037808,10]
[383773688,1757110258519,-400.0,0.00037808,10]
[383773689,1757110258528,-400.0,0.00037808,10]
[383773690,1757110258537,-647.03,0.00037808,10]
[383773691,1757110258547,-656.12,0.00037808,10]
[383773692,1757110258556,-400.0,0.00037808,10]
[383773693,1757110258566,-400.0,0.00037808,10]
[383773694,1757110258575,-400.0,0.00037808,10]
[383773695,1757110258584,-173.09890521,0.00037808,10]
[383773696,1757110258594,-400.0,0.00037808,10]
[383773697,1757110258604,-610.42,0.00037808,10]
[383773698,1757110258613,-400.0,0.00037808,10]
[383773699,1757110258623,-400.0,0.00037808,10]
[383773700,1757110258632,-400.0,0.00037808,10]
[383773701,1757110258641,-400.0,0.00037808,10]
[383773702,1757110258651,-400.0,0.00037808,10]
[383773703,1757110258660,-400.0,0.00037808,10]
[383773704,1757110258669,-400.0,0.00037808,10]
[383773705,1757110258678,-400.0,0.00037808,10]
[383773706,1757110258688,-400.0,0.00037808,10]
[383773707,1757110258697,-585.76,0.00037808,10]
[383773708,1757110258707,-400.0,0.00037808,10]
[383773709,1757110258716,-400.0,0.00037808,10]
[383773710,1757110258726,-400.0,0.00037808,10]
[383773711,1757110258735,-3134.44,0.00037808,5]
[383773712,1757110258746,-400.0,0.00037808,10]
[383773713,1757110258755,-400.0,0.00037808,10]
[383773714,1757110258764,-400.0,0.00037808,10]
[383773715,1757110258774,-400.0,0.00037808,10]
[383773716,1757110258784,-400.0,0.00037808,10]
[383773717,1757110258793,-400.0,0.00037808,10]
[383773718,1757110258803,-400.0,0.00037808,10]
[383773719,1757110258812,-404.05,0.00037808,10]
[383773720,1757110258823,-400.0,0.00037808,10]
[383773721,1757110258834,-400.0,0.00037808,10]
[383773722,1757110258844,-478.22,0.00037808,10]
[383773723,1757110258853,-400.0,0.00037808,10]
[383773724,1757110258863,-400.0,0.00037808,10]
[383773725,1757110258873,-400.0,0.00037808,10]
[383773726,1757110258883,-400.0,0.00037808,10]
[383773727,1757110258892,-555.03,0.00037808,10]
[383773728,1757110258902,-522.98,0.00037808,10]
[383773729,1757110258912,-400.0,0.00037808,10]
[383773730,1757110258921,-412.26,0.00037808,10]
[383773731,1757110258931,-400.0,0.00037808,10]
[383773732,1757110258940,-400.0,0.00037808,10]
[383773733,1757110258950,-400.0,0.00037808,10]
[383773734,1757110258959,-400.0,0.00037808,10]
[383773735,1757110258968,-400.0,0.00037808,10]
[383773736,1757110258978,-400.0,0.00037808,10]
[383773737,1757110258987,-400.0,0.00037808,10]
[383773738,1757110258997,-400.0,0.00037808,10]
[383773739,1757110259007,-617.32,0.00037808,10]
[383773740,1757110259017,-400.0,0.00037808,10]
[383773741,1757110259027,-400.0,0.00037808,10]
[383773742,1757110259037,-400.0,0.00037808,10]
[383773743,1757110259047,-400.0,0.00037808,10]
[383773744,1757110259056,-896.9,0.00037808,10]
[383773745,1757110259065,-520.03,0.00037808,10]
[383773746,1757110259074,-400.0,0.00037808,10]
[383773747,1757110259085,-558.4,0.00037808,10]
[383773748,1757110259094,-649.24,0.00037808,10]
[383773749,1757110259104,-400.0,0.00037808,10]
[383773750,1757110259114,-614.37,0.00037808,10]
[383773751,1757110259124,-1000.0,0.00037808,10]
[383773752,1757110259133,-275.74,0.00037808,10]
[383773753,1757110259143,-538.02,0.00037808,10]
[383773754,1757110259153,-437.77,0.00037808,10]
[383773755,1757110259162,-556.89,0.00037808,10]
[383773756,1757110259174,-474.27,0.00037808,10]
[383773757,1757110259183,-400.0,0.00037808,10]
[383773758,1757110259193,-439.12,0.00037808,10]
[383773759,1757110259203,-415.35,0.00037808,10]
[383773760,1757110259212,-400.0,0.00037808,10]
[383773761,1757110259222,-815.21,0.00037808,10]
[383773762,1757110259231,-789.73,0.00037808,10]
[383773763,1757110259241,-520.84,0.00037808,10]
[383773764,1757110259251,-400.0,0.00037808,10]
[383773765,1757110259260,-406.06,0.00037808,10]
[383773766,1757110259270,-400.0,0.00037808,10]
[383773767,1757110259279,-400.0,0.00037808,10]
[383773768,1757110259334,-734.64,0.00037808,10]
[383773769,1757110259344,-400.0,0.00037808,10]
[383773770,1757110259354,-400.0,0.00037808,10]
[383773771,1757110259363,-469.1,0.00037808,10]
[383773772,1757110259373,-400.0,0.00037808,10]
[383773773,1757110259382,-400.0,0.00037808,10]
[383773774,1757110259392,-400.0,0.00037808,10]
[383773775,1757110259402,-400.0,0.00037808,10]
[383773776,1757110259411,-400.0,0.00037808,10]
[383773777,1757110259420,-545.69,0.00037808,10]
[383773778,1757110259430,-400.0,0.00037808,10]
[383773779,1757110259439,-3990.88,0.00037808,10]
[383773780,1757110259449,-425.1,0.00037808,10]
[383773781,1757110259458,-400.0,0.00037808,10]
[383773782,1757110259467,-715.64,0.00037808,10]
[383773783,1757110259476,-1117.99,0.00037808,10]
[383773784,1757110259486,-400.0,0.00037808,10]
[383773785,1757110259495,-436.28,0.00037808,10]
[383773786,1757110259505,-400.0,0.00037808,10]
[383773787,1757110259514,-466.46,0.00037808,10]
[383773788,1757110259523,-420.62,0.00037808,10]
[383773789,1757110259532,-400.0,0.00037808,10]
[383773790,1757110259542,-444.51,0.00037808,10]
[383773791,1757110259551,-500.0,0.00037818,7]
[383773792,1757110259560,-500.0,0.00037824,7]
[383773793,1757110259569,-1708.0,0.000379,20]
[383773794,1757110259578,-150.0,0.0003794,2]
[383773795,1757110259588,-500.0,0.00038071,2]
[383773796,1757110259597,-500.0,0.00038071,10]
[383773797,1757110259606,-400.0,0.00038082,10]
[383773798,1757110259615,-400.0,0.00038082,10]
[383773799,1757110259625,-400.0,0.00038082,10]
[383773800,1757110259635,-409.54,0.00038082,10]
[383773801,1757110259644,-400.0,0.00038082,10]
[383773802,1757110259654,-400.0,0.00038082,10]